bitfinex/quotes_ETHUSD_20240821
["timestamp","ask_amount","ask_price","bid_price","bid_amount"]
[1724228691146,4.018,2588.9,2588.5,0.03942533]
[1724228692029,7.018,2589.2,2588.6,0.7]
[1724228694448,4.018,2588.9,2588.4,2.3905]
[1724228694806,4.018,2588.9,2588.3,0.7]
[1724228694949,0.4018,2588.8,2588.3,0.7]
[1724228697603,0.4018,2588.8,2588.0,3.0996]
[1724228697746,0.4018,2588.8,2588.1,0.55]
[1724228697950,0.4018,2588.8,2588.1,0.58946323]
[1724228698402,0.4018,2588.8,2588.3,0.7]
[1724228698990,0.4018,2588.8,2588.1,0.55]
[1724228699333,0.4018,2588.8,2588.2,0.03946323]
[1724228699334,6.3346,2588.6,2588.2,0.03946323]
[1724228699491,6.3346,2588.6,2588.0,0.7]
[1724228700072,6.3346,2588.6,2588.1,0.03950113]
[1724228700073,4.018,2588.3,2588.1,0.03950113]
[1724228700520,3.0,2588.5,2587.7,3.1874]
[1724228700821,3.0,2588.5,2588.2,0.03964327]
[1724228701021,3.0,2588.5,2587.8,0.31874]
[1724228701521,3.0,2588.5,2588.1,0.7]
[1724228701729,11.79183193,2588.8,2588.1,0.7]
[1724228701962,9.3882,2588.8,2588.1,0.7]
[1724228702280,11.79183193,2588.8,2588.1,0.7]
[1724228702615,7.018,2588.8,2588.2,2.3979]
[1724228702936,7.27,2588.9,2588.5,0.7]
[1724228704322,2.3702,2589.3,2588.5,0.7]
[1724228704323,7.27,2589.2,2588.5,0.7]
[1724228705399,7.27,2589.2,2588.9,0.7]
[1724228705597,2.3702,2589.5,2588.9,0.7]
[1724228705598,4.77392389,2589.5,2588.9,0.7]
[1724228705993,2.40372389,2589.5,2588.9,0.7]
[1724228706186,7.27,2589.6,2589.1,2.33]
[1724228706418,9.67372389,2589.6,2589.1,2.33]
[1724228706619,2.40372389,2589.7,2589.1,2.33]
[1724228706802,4.018,2589.6,2589.1,2.33]
[1724228707016,4.018,2589.6,2589.2,0.0389706]
[1724228707192,4.80191027,2589.6,2589.1,2.33]
[1724228707393,3.0,2589.5,2589.1,2.33]
[1724228707588,2.3958,2589.8,2589.2,0.7]
[1724228707589,5.40372389,2589.8,2589.2,0.7]
[1724228707840,2.40372389,2589.8,2589.2,0.7]
[1724228708140,4.018,2589.6,2589.2,0.7]
[1724228708304,4.58506136,2589.6,2588.9,3.03]
[1724228708646,4.58506136,2589.6,2589.3,0.03837385]
[1724228708647,6.98086136,2589.6,2589.3,0.03837385]
[1724228708824,6.98086136,2589.6,2588.9,3.03]
[1724228708997,4.018,2589.6,2589.2,0.7]
[1724228709336,2.3958,2589.9,2589.3,0.03830756]
[1724228709337,2.40270972,2589.8,2589.3,0.03830756]
[1724228709541,2.3958,2589.9,2589.2,0.7]
[1724228709542,7.79850972,2589.9,2589.2,0.7]
[1724228710341,5.40270972,2589.9,2589.3,2.33]
[1724228710645,5.19896135,2590.2,2589.5,0.7]
[1724228710646,9.42070972,2590.1,2589.5,0.7]
[1724228711033,9.42070972,2590.1,2589.6,0.03813711]
[1724228711393,7.018,2590.1,2589.5,0.7]
[1724228712324,9.42070972,2590.1,2589.5,0.7]
[1724228712541,9.42070972,2590.1,2589.3,2.88]
[1724228712542,4.018,2589.8,2589.3,2.88]
[1724228712895,4.018,2589.8,2589.5,0.7]
[1724228713120,4.018,2589.8,2589.2,0.7]
[1724228713370,4.018,2589.8,2589.6,0.03788147]
[1724228713528,2.4199,2589.7,2589.0,2.4286]
[1724228713718,4.018,2589.4,2588.9,0.7]
[1724228717052,9.4379,2589.7,2589.2,0.7]
[1724228717256,7.018,2589.7,2589.3,0.55]
[1724228717575,7.018,2589.7,2588.2,0.3867]
[1724228717576,10.28650246,2589.7,2589.0,0.7]
[1724228717923,7.018,2589.7,2589.3,3.1297]
[1724228718154,3.50825097,2590.0,2589.3,3.1297]
[1724228718155,12.92754689,2590.0,2589.3,3.1297]
[1724228719219,10.52625097,2590.0,2589.3,3.1297]
[1724228719574,7.018,2590.0,2589.6,0.7]
[1724228721433,7.018,2590.0,2589.7,2.3512962]
[1724228721725,4.018,2590.0,2589.7,0.0377962]
[1724228722019,4.018,2590.0,2589.7,0.5877962]
[1724228724026,4.018,2590.0,2589.7,0.55]
[1724228724470,4.018,2590.0,2589.8,0.0375027]
[1724228724620,4.018,2590.0,2589.7,0.55]
[1724228724822,4.018,2590.0,2589.8,0.0375027]
[1724228725036,7.018,2590.3,2589.7,0.55]
[1724228727536,7.018,2590.3,2589.9,0.7]
[1724228727943,4.018,2590.3,2589.9,1.06361]
[1724228728172,4.018,2590.3,2589.9,0.7]
[1724228729656,7.27,2590.5,2589.9,0.7]
[1724228730567,7.27,2590.5,2590.0,0.55]
[1724228731232,4.018,2590.3,2590.0,0.55]
[1724228731452,4.018,2590.3,2589.9,0.7]
[1724228732274,4.018,2590.3,2589.6,0.7]
[1724228732275,4.018,2590.0,2589.6,0.7]
[1724228732624,4.018,2590.0,2589.5,2.4319]
[1724228732825,4.018,2590.0,2589.7,0.03674541]
[1724228733049,4.018,2590.0,2589.3,3.0916]
[1724228733233,4.018,2590.0,2589.8,0.03684006]
[1724228733432,4.018,2590.0,2589.3,3.0916]
[1724228733677,4.018,2590.0,2589.4,0.55]
[1724228733833,4.018,2590.0,2589.4,0.03684006]
[1724228734481,4.018,2589.6,2589.4,0.03684006]
[1724228734629,4.4198,2589.6,2589.4,0.03684006]
[1724228734836,4.4198,2589.6,2589.0,3.0978]
[1724228735031,4.018,2589.6,2589.0,3.0978]
[1724228735230,4.018,2589.6,2589.1,0.03690631]
[1724228735669,4.018,2589.6,2589.0,3.0978]
[1724228735887,4.018,2589.6,2589.1,0.03704308]
[1724228736392,4.018,2589.6,2589.0,3.0978]
[1724228736570,4.018,2589.6,2589.0,3.40758]
[1724228736782,7.27,2589.8,2589.3,0.7]
[1724228737090,3.0,2589.7,2589.3,0.7]
[1724228737646,7.27,2589.8,2589.3,0.7]
[1724228737647,7.27,2589.8,2589.4,0.55]
[1724228738261,7.27,2589.8,2589.3,0.7]
[1724228738466,8.93903,2589.8,2589.3,0.7]
[1724228739264,7.27,2589.8,2589.3,0.7]
[1724228740402,6.4203,2589.9,2589.3,0.7]
[1724228740603,3.0,2589.8,2589.3,0.7]
[1724228740814,4.018,2589.6,2589.3,0.7]
[1724228742989,3.0,2589.8,2589.6,0.7]
[1724228743196,3.0,2589.8,2589.2,0.7]
[1724228743418,6.1537,2589.8,2589.3,0.55]
[1724228743556,6.1537,2589.8,2589.3,0.58762999]
[1724228743911,4.018,2589.6,2589.3,0.03762999]
[1724228744309,4.018,2589.6,2589.2,0.7]
[1724228744760,4.018,2589.6,2589.3,0.03762999]
[1724228745158,4.018,2589.6,2589.2,0.7]
[1724228745705,4.018,2589.6,2589.3,0.03762999]
[1724228746007,3.0,2589.8,2589.3,0.03762999]
[1724228746299,3.0,2589.8,2589.6,2.2775]
[1724228746603,3.0,2589.8,2589.5,0.7]
[1724228746964,4.018,2589.9,2589.5,0.7]
[1724228748810,7.27,2590.1,2589.8,0.7]
[1724228749157,7.27,2590.1,2589.8,3.162]
[1724228752339,7.018,2590.2,2589.8,3.162]
[1724228752550,7.018,2590.2,2589.8,3.4782]
[1724228754237,2.4046289,2590.4,2589.8,3.4782]
[1724228754451,3.96361849,2591.1,2590.5,0.7]
[1724228754452,2.4046289,2590.7,2590.5,0.7]
[1724228754594,2.4046289,2590.9,2590.5,0.7]
[1724228754795,5.08700038,2591.2,2590.8,0.7]
[1724228754796,2.4046289,2591.2,2590.8,0.7]
[1724228755030,2.4046289,2591.1,2590.8,0.7]
[1724228755390,2.4046289,2591.2,2590.8,0.7]
[1724228755633,6.4226289,2591.1,2590.5,0.7]
[1724228755988,3.0,2591.0,2590.5,0.7]
[1724228756390,5.4046289,2591.0,2590.5,0.7]
[1724228756836,3.0,2591.0,2590.5,0.7]
[1724228757019,5.4046289,2591.0,2590.5,0.7]
[1724228757222,4.05735918,2591.0,2590.5,0.7]
[1724228758511,2.4251,2590.9,2590.5,0.7]
[1724228758896,2.4251,2590.9,2590.2,0.7]
[1724228759103,4.018,2590.5,2590.3,0.03610622]
[1724228759303,6.7402,2590.5,2590.2,0.7]
[1724228759504,6.7402,2590.5,2589.9,0.7]
[1724228759699,6.7402,2590.5,2590.0,0.03610622]
[1724228759700,6.3384,2590.5,2590.0,0.03610622]
[1724228759899,6.3384,2590.5,2589.8,2.4614]
[1724228759900,3.0,2590.4,2589.8,2.4614]
[1724228760145,3.0,2590.4,2589.9,0.03610622]
[1724228760146,4.018,2590.2,2589.9,0.03610622]
[1724228760348,4.018,2590.2,2589.6,0.7]
[1724228760647,4.018,2590.2,2590.0,0.03610622]
[1724228760844,4.018,2590.2,2589.6,0.7]
[1724228761318,4.018,2590.2,2589.7,0.03610622]
[1724228762752,4.018,2590.2,2589.6,0.7]
[1724228762951,4.018,2589.9,2589.3,0.7]
[1724228765990,5.2628,2590.1,2589.6,0.7]
[1724228766327,3.0,2590.1,2589.6,0.7]
[1724228766711,3.0,2590.1,2589.6,3.0589]
[1724228766943,5.40125875,2590.3,2589.6,3.36479]
[1724228767161,5.40204419,2590.3,2589.6,3.36479]
[1724228767505,3.0,2590.3,2589.6,3.36479]
[1724228767863,4.018,2590.2,2589.6,0.7]
[1724228768525,6.42004419,2590.2,2589.6,0.7]
[1724228768725,4.018,2590.2,2589.6,0.7]
[1724228773400,4.018,2590.2,2589.7,2.4329]
[1724228775783,4.018,2590.2,2589.6,0.7]
[1724228776014,5.19975112,2590.2,2589.6,0.7]
[1724228777199,7.60191625,2590.2,2589.6,0.7]
[1724228777411,2.4634,2590.1,2589.6,0.7]
[1724228777627,4.86556513,2590.1,2589.6,0.7]
[1724228777968,3.0,2590.0,2589.6,0.7]
[1724228778393,3.88481005,2590.0,2589.3,1.25]
[1724228778714,4.018,2589.9,2589.7,0.03432645]
[1724228778917,3.0,2589.8,2589.3,0.7]
[1724228780187,4.018,2589.9,2589.3,0.99971]
[1724228780376,2.4634,2590.1,2589.3,0.99971]
[1724228780574,3.0,2590.1,2589.4,2.4482]
[1724228780777,7.27,2590.2,2589.4,2.4482]
[1724228782006,4.018,2590.2,2589.6,0.7]
[1724228782419,5.20656332,2590.2,2589.6,0.7]
[1724228782615,2.40223318,2590.1,2589.6,0.7]
[1724228783048,4.83026532,2590.1,2589.6,0.7]
[1724228783352,2.4273,2590.1,2589.6,0.7]
[1724228785836,4.83026532,2590.1,2589.6,0.7]
[1724228786147,5.83415651,2590.1,2589.6,0.7]
[1724228788107,5.40317365,2590.0,2589.6,0.7]
[1724228788321,3.0,2590.0,2589.6,0.7]
[1724228789854,3.0,2590.1,2589.6,0.7]
[1724228791254,3.0,2590.1,2589.7,2.4847]
[1724228791458,3.0,2590.1,2589.7,2.80317]
[1724228792376,4.018,2590.2,2589.7,2.80317]
[1724228793674,5.40410703,2590.4,2589.9,0.7]
[1724228794078,3.0,2590.4,2589.9,0.7]
[1724228794288,9.67410703,2590.5,2590.3,0.7]
[1724228794445,2.80479154,2590.7,2590.3,0.7]
[1724228794446,2.40410703,2590.7,2590.3,0.7]
[1724228795260,2.40469146,2590.7,2590.3,0.7]
[1724228795469,4.018,2590.8,2590.3,0.7]
[1724228795470,6.42269146,2590.8,2590.3,0.7]
[1724228795679,2.40469146,2590.6,2590.3,0.7]
[1724228796379,5.40469146,2590.7,2590.3,0.7]
[1724228797737,3.0,2590.7,2590.3,0.7]
[1724228797931,5.40469146,2590.7,2590.3,0.7]
[1724228799281,3.0,2590.7,2590.3,0.7]
[1724228800980,4.018,2590.8,2590.3,1.00406]
[1724228802067,2.40469146,2591.0,2590.4,2.4627]
[1724228802275,5.40469146,2591.0,2590.4,2.4627]
[1724228803870,5.40469146,2591.0,2590.6,0.7]
[1724228804075,2.40469146,2591.2,2590.6,0.7]
[1724228804389,2.40469146,2591.3,2590.7,2.9684]
[1724228804695,2.40469146,2591.3,2590.8,0.36684]
[1724228804840,2.40469146,2591.2,2590.8,0.36684]
[1724228805273,2.40469146,2591.3,2590.8,0.36684]
[1724228805440,5.40469146,2591.3,2590.8,0.36684]
[1724228805940,3.0,2591.3,2590.8,0.36684]
[1724228806265,5.40469146,2591.3,2590.8,0.36684]
[1724228807154,3.0,2591.3,2590.8,0.36684]
[1724228808137,4.018,2591.1,2590.7,2.9684]
[1724228808840,4.018,2591.1,2590.6,0.7]
[1724228808841,6.3487,2591.1,2590.6,0.7]
[1724228810196,4.018,2591.1,2590.6,0.7]
[1724228810357,3.0,2591.3,2590.7,0.55]
[1724228810553,3.0,2591.3,2590.8,2.3433]
[1724228810753,3.0,2591.3,2590.9,0.7]
[1724228811994,4.018,2591.4,2590.9,0.7]
[1724228815104,3.0,2591.6,2591.2,0.7]
[1724228815306,7.018,2591.7,2591.2,0.7]
[1724228815476,7.018,2591.7,2591.0,2.2772]
[1724228815477,4.018,2591.4,2591.0,2.2772]
[1724228816580,4.018,2591.4,2590.9,0.7]
[1724228822792,4.018,2591.4,2590.7,0.55]
[1724228822992,5.80426684,2591.6,2590.6,0.7]
[1724228822993,4.018,2591.1,2590.6,0.7]
[1724228823202,4.43305109,2591.1,2590.6,0.7]
[1724228823374,4.018,2591.1,2590.6,0.7]
[1724228827823,3.0,2591.3,2590.6,0.7]
[1724228828070,3.0,2591.3,2590.7,2.3888]
[1724228830288,3.0,2591.3,2591.0,0.7]
[1724228830628,3.0,2591.3,2590.7,3.0888]
[1724228836951,5.40108814,2591.3,2590.7,3.0888]
[1724228837742,4.018,2591.1,2590.7,0.7]
[1724228838541,5.40108814,2591.3,2591.0,0.7]
[1724228838819,3.0,2591.4,2591.0,0.7]
[1724228838959,3.0,2591.4,2591.1,2.3811]
[1724228841407,2.40108814,2591.5,2591.2,0.30811]
[1724228841558,2.40108814,2591.8,2591.4,0.7]
[1724228841900,2.40108814,2591.9,2591.4,0.7]
[1724228842213,2.40108814,2591.7,2591.4,0.7]
[1724228842919,4.018,2591.5,2591.1,0.7]
[1724228843216,6.41908814,2591.5,2591.1,0.7]
[1724228843566,4.018,2591.5,2591.1,0.7]
[1724228843883,6.41908814,2591.5,2591.1,0.7]
[1724228844099,2.40108814,2591.4,2591.0,2.2878]
[1724228844301,2.40108814,2591.3,2590.8,2.9878]
[1724228844470,2.40108814,2591.2,2590.8,2.9878]
[1724228845449,2.40480872,2591.2,2590.8,2.9878]
[1724228846364,6.82361017,2591.4,2590.8,2.9878]
[1724228846365,2.40480872,2591.3,2590.8,2.9878]
[1724228846555,6.42280872,2591.4,2591.1,0.7]
[1724228847024,2.40480872,2591.3,2590.9,0.55]
[1724228847239,2.40480872,2591.3,2591.1,0.7]
[1724228849213,2.40480872,2591.2,2591.1,0.7]
[1724228849909,3.08716974,2591.3,2591.1,0.7]
[1724228850112,2.40703929,2591.3,2591.1,0.7]
[1724228850294,2.40703929,2591.2,2591.1,0.7]
[1724228850494,2.40703929,2591.3,2591.1,0.7]
[1724228851704,2.40703929,2591.2,2591.1,0.7]
[1724228851900,2.40703929,2591.3,2591.1,0.7]
[1724228852340,2.40703929,2591.2,2591.1,0.7]
[1724228852501,6.21573769,2591.3,2591.1,0.7]
[1724228853648,6.21573769,2591.3,2590.6,2.4799]
[1724228853820,2.40704828,2591.0,2590.6,2.4799]
[1724228854155,2.40704828,2591.0,2590.6,2.79789]
[1724228854858,2.40699661,2591.1,2590.8,0.7]
[1724228855360,2.40699661,2591.2,2590.8,0.7]
[1724228856158,2.40699661,2591.1,2590.8,0.7]
[1724228856632,2.40699661,2591.0,2590.8,0.7]
[1724228857508,2.40699661,2591.1,2590.8,0.7]
[1724228859662,2.40771179,2591.1,2590.8,0.7]
[1724228863052,2.40771179,2591.0,2590.8,0.7]
[1724228863454,2.40771179,2591.1,2590.8,1.01799]
[1724228863754,2.40771179,2591.1,2590.8,0.7]
[1724228864111,2.40771179,2591.2,2590.8,0.7]
[1724228864311,2.40771179,2591.1,2590.8,0.7]
[1724228864714,6.82699709,2591.4,2590.8,0.7]
[1724228864715,2.40771179,2591.0,2590.8,0.7]
[1724228865148,2.40771179,2591.1,2590.8,0.7]
[1724228865441,2.40771179,2591.0,2590.8,0.7]
[1724228866028,2.40771179,2591.1,2590.8,0.7]
[1724228866233,2.40771179,2591.0,2590.8,0.7]
[1724228866564,2.40771179,2591.1,2590.8,0.7]
[1724228868553,1.676,2590.9,2590.8,0.7]
[1724228870593,1.676,2591.2,2591.1,0.7]
[1724228870731,2.4074055,2591.4,2591.2,2.4647]
[1724228871262,2.4074055,2591.5,2591.2,2.4647]
[1724228871432,2.4074055,2591.5,2591.2,2.78117]
[1724228871632,2.4074055,2591.6,2591.2,2.78117]
[1724228871894,1.676,2591.5,2591.2,2.78117]
[1724228872533,2.4074055,2591.7,2591.2,2.78117]
[1724228873580,9.6774055,2591.8,2591.2,2.78117]
[1724228873734,2.40685485,2591.8,2591.6,2.3622]
[1724228873940,2.40685485,2592.1,2591.6,2.3622]
[1724228874378,2.40685485,2592.2,2591.6,2.3622]
[1724228874798,4.02,2592.3,2591.8,0.7]
[1724228874799,2.40685485,2592.1,2591.8,0.7]
[1724228875091,2.40685485,2592.2,2591.8,0.7]
[1724228875511,2.40685485,2592.0,2591.8,0.7]
[1724228875690,2.40685485,2592.1,2591.8,0.7]
[1724228876663,6.42685485,2592.1,2591.8,0.7]
[1724228876910,7.16248831,2592.1,2591.8,0.7]
[1724228877210,4.68465485,2592.0,2591.5,0.7]
[1724228877416,2.2778,2592.0,2591.5,0.7]
[1724228877699,7.16248831,2592.1,2591.5,0.7]
[1724228878377,4.02,2591.8,2591.5,0.7]
[1724228880579,4.02,2591.8,2591.5,1.07494]
[1724228883876,4.02,2591.8,2591.6,2.9365]
[1724228885110,4.02,2592.2,2591.8,0.7]
[1724228885898,4.02,2592.2,2591.9,2.3843]
[1724228886223,4.02,2592.2,2591.9,2.69273]
[1724228886436,4.02,2592.2,2591.8,0.7]
[1724228889614,4.02,2592.2,2592.1,0.7]
[1724228890189,4.02,2592.2,2592.1,3.1223]
[1724228893435,4.02,2592.5,2592.1,3.1223]
[1724228894446,1.674,2592.2,2592.1,3.48953]
[1724228894664,1.674,2592.2,2592.1,4.03953]
[1724228895146,1.674,2592.2,2592.1,1.61723]
[1724228895345,1.674,2592.2,2592.1,0.7]
[1724228895703,1.674,2592.2,2591.8,3.1051]
[1724228895952,2.4736,2592.6,2591.8,3.1051]
[1724228896249,1.674,2591.9,2591.8,3.1051]
[1724228896415,1.674,2591.9,2591.8,4.15661]
[1724228897003,1.674,2591.9,2591.8,4.70661]
[1724228897602,2.4736,2592.6,2591.8,4.70661]
[1724228897854,1.674,2591.9,2591.8,4.70661]
[1724228898305,1.674,2591.9,2591.8,0.7]
[1724228905028,1.674,2591.9,2591.8,3.1767]
[1724228905228,1.674,2591.9,2591.8,3.7267]
[1724228906028,2.2613,2592.6,2591.8,3.7267]
[1724228906480,2.2613,2592.6,2591.8,1.25]
[1724228906798,2.4143,2592.4,2591.8,1.25]
[1724228907784,1.674,2591.9,2591.8,1.25]
[1724228908484,1.674,2591.9,2591.8,0.7]
[1724228909774,1.674,2591.9,2591.8,3.1824]
[1724228909975,1.674,2591.9,2591.8,3.7324]
[1724228910288,1.674,2591.9,2591.8,4.10564]
[1724228914361,2.40007742,2592.6,2592.3,0.7]
[1724228914604,1.92962253,2593.7,2592.3,0.7]
[1724228914605,1.674,2592.4,2592.3,0.7]
[1724228914958,1.674,2592.4,2592.3,1.25]
[1724228915154,1.674,2592.4,2592.3,1.60333]
[1724228917149,1.674,2592.4,2592.3,0.7]
[1724228919092,1.674,2592.4,2591.8,0.37324]
[1724228919351,1.674,2592.0,2591.9,0.55]
[1724228920839,1.674,2592.0,2591.9,1.25]
[1724228921346,1.674,2592.2,2592.1,0.7]
[1724228921494,1.674,2592.2,2592.1,1.60457]
[1724228922741,2.3685,2592.9,2592.1,1.60457]
[1724228922742,4.77428616,2592.9,2592.5,0.7]
[1724228922895,2.40578616,2592.9,2592.5,0.7]
[1724228923099,1.674,2592.6,2592.5,0.7]
[1724228923432,1.674,2592.6,2592.5,1.25]
[1724228925347,2.40527976,2592.9,2592.8,0.7]
[1724228925656,1.674,2592.9,2592.8,0.7]
[1724228928642,1.674,2592.9,2592.2,0.7]
[1724228928643,4.0589,2592.9,2592.2,0.7]
[1724228928951,5.19683153,2592.9,2592.2,0.7]
[1724228929313,2.40584141,2592.8,2592.2,0.7]
[1724228930067,2.4442,2592.7,2592.2,0.7]
[1724228930623,2.40584141,2592.9,2592.5,0.7]
[1724228930804,5.40584141,2592.9,2592.5,0.7]
[1724228931020,6.18964555,2592.9,2592.5,0.7]
[1724228931614,1.674,2592.6,2592.5,0.7]
[1724228933162,1.674,2592.6,2592.5,3.1246]
[1724228933379,1.674,2592.6,2592.5,3.6746]
[1724228934011,1.674,2592.6,2592.5,1.25]
[1724228934323,1.674,2592.6,2592.5,0.7]
[1724228934915,2.40553813,2593.0,2592.5,3.1135]
[1724228935125,1.674,2592.6,2592.5,3.1135]
[1724228935461,1.674,2592.6,2592.5,1.25]
[1724228940570,1.674,2592.6,2592.2,0.7]
[1724228940571,2.3557,2592.5,2592.2,0.7]
[1724228940819,1.674,2592.4,2592.2,0.7]
[1724228941130,0.40297,2592.3,2592.2,0.7]
[1724228947442,1.674,2592.4,2592.2,0.7]
[1724228950029,4.82246748,2592.3,2592.2,0.7]
[1724228950205,2.417,2592.3,2592.2,0.7]
[1724228950717,2.417,2592.3,2591.5,0.7]
[1724228950945,2.417,2592.3,2591.3,15.578]
[1724228950946,4.82016748,2592.0,2591.3,0.7]
[1724228951255,1.674,2591.5,2591.3,0.7]
[1724228954668,1.674,2591.5,2591.4,0.55]
[1724228956550,4.021,2591.5,2591.4,0.55]
[1724228956933,4.021,2591.5,2591.3,0.7]
[1724228957133,4.66976,2591.5,2591.3,0.7]
[1724228958270,4.021,2591.5,2591.3,0.7]
[1724228960245,2.4312,2591.4,2591.3,0.7]
[1724228961359,2.4312,2591.4,2591.0,0.7]
[1724228961542,2.4312,2591.4,2590.8,0.7]
[1724228961543,4.021,2591.1,2590.8,0.7]
[1724228961742,4.4231,2591.1,2590.8,0.7]
[1724228962545,4.021,2591.1,2590.8,0.7]
[1724228964785,4.021,2591.1,2590.9,0.55]
[1724228970608,2.4312,2591.4,2591.3,0.7]
[1724228970609,4.021,2591.4,2591.3,0.7]
[1724228978394,1.675,2591.4,2591.3,0.7]
[1724228982296,2.08568,2591.4,2591.3,0.7]
[1724228982598,1.675,2591.4,2591.3,0.7]
[1724228991041,2.40207164,2591.8,2591.3,0.7]
[1724228991042,4.83847164,2591.8,2591.3,0.7]
[1724228991254,1.675,2591.4,2591.3,0.7]
[1724228991401,1.675,2591.4,2591.3,1.25]
[1724228991607,1.675,2591.4,2591.3,1.60031]
[1724228993248,2.403285,2592.0,2591.6,0.7]
[1724228993249,2.40381117,2592.0,2591.6,0.7]
[1724228993590,4.73880578,2592.2,2591.9,0.7]
[1724228993753,4.75408058,2592.2,2591.9,0.7]
[1724228993948,2.3342,2592.2,2591.9,0.7]
[1724228994184,4.73880578,2592.2,2591.9,0.7]
[1724228994369,2.3342,2592.2,2591.9,0.7]
[1724228994906,1.675,2592.0,2591.9,0.7]
[1724228995392,1.675,2592.0,2591.9,1.25]
[1724228997594,1.675,2592.0,2591.9,3.5552]
[1724228997801,1.675,2592.0,2591.9,3.91072]
[1724228999945,1.675,2592.2,2592.1,0.7]
[1724229000064,1.675,2592.2,2592.1,1.25]
[1724229000492,1.675,2592.2,2592.0,0.7]
[1724229000699,2.4471,2592.0,2591.6,0.7]
[1724229000857,1.675,2591.7,2591.6,0.7]
[1724229001315,1.675,2591.7,2591.3,0.7]
[1724229001490,4.85036833,2592.0,2591.3,0.7]
[1724229002006,1.675,2591.4,2591.1,0.7]
[1724229002309,1.675,2591.2,2591.1,0.7]
[1724229002617,4.023,2591.2,2590.7,0.7]
[1724229002779,4.023,2590.9,2590.7,0.7]
[1724229004713,4.023,2590.9,2590.2,3.1977]
[1724229004714,4.023,2590.9,2590.4,0.7]
[1724229004877,6.7571,2590.9,2590.4,0.7]
[1724229005212,4.023,2590.6,2590.4,0.7]
[1724229005785,4.023,2590.6,2590.2,0.87]
[1724229006080,4.023,2590.6,2590.5,0.55]
[1724229006263,4.023,2590.6,2590.4,0.7]
[1724229006460,4.023,2590.6,2590.5,0.55]
[1724229009518,4.4253,2590.6,2590.3,0.7]
[1724229010766,2.4915,2590.5,2590.0,0.7]
[1724229011082,4.4253,2590.6,2590.0,0.7]
[1724229011083,4.023,2590.1,2590.0,0.7]
[1724229011299,5.93403,2590.5,2590.0,0.7]
[1724229011506,5.4915,2590.5,2590.0,0.7]
[1724229011686,2.4915,2590.5,2590.0,0.7]
[1724229011885,4.023,2590.1,2590.0,0.7]
[1724229013569,4.023,2590.4,2590.0,0.7]
[1724229013812,4.023,2590.4,2590.3,0.7]
[1724229016409,3.0,2590.7,2590.3,0.7]
[1724229016410,7.023,2590.7,2590.3,0.7]
[1724229016593,4.023,2590.7,2590.3,0.7]
[1724229017426,4.023,2590.4,2590.3,0.7]
[1724229020283,4.023,2590.4,2590.0,0.7]
[1724229020878,4.023,2590.1,2590.0,0.7]
[1724229021074,4.023,2590.1,2590.0,1.25]
[1724229023222,4.023,2590.4,2590.0,1.25]
[1724229024233,2.8779,2590.3,2590.0,1.25]
[1724229024430,4.023,2590.1,2590.0,1.25]
[1724229025328,4.023,2590.1,2590.0,0.7]
[1724229031056,4.023,2590.1,2589.6,0.7]
[1724229031936,4.023,2589.8,2589.6,0.7]
[1724229034921,4.023,2590.1,2589.6,0.7]
[1724229035128,4.023,2590.1,2589.9,0.7]
[1724229035628,4.023,2590.1,2590.0,0.55]
[1724229035972,7.27,2590.4,2590.2,0.7]
[1724229036117,2.4421,2590.5,2590.2,0.7]
[1724229036321,4.023,2590.4,2590.2,0.7]
[1724229037323,4.023,2590.4,2590.0,0.55]
[1724229037324,0.64651,2590.3,2590.0,0.55]
[1724229037523,4.023,2590.4,2590.0,0.55]
[1724229038647,4.023,2590.4,2590.2,0.7]
[1724229039232,4.023,2590.4,2589.8,0.7]
[1724229039462,4.023,2590.1,2589.8,0.7]
[1724229040092,6.5151,2590.1,2589.8,0.7]
[1724229040279,7.16661,2590.1,2589.8,0.7]
[1724229040827,6.5151,2590.1,2589.8,0.7]
[1724229041021,4.023,2590.1,2589.8,0.7]
[1724229041344,4.023,2590.1,2589.7,2.4127]
[1724229041345,4.023,2590.4,2590.1,0.7]
[1724229043773,2.3399,2590.3,2590.1,0.7]
[1724229047692,6.42428166,2590.4,2590.1,0.7]
[1724229047988,3.04883071,2590.3,2590.1,0.7]
[1724229049652,2.3238,2590.2,2589.7,0.7]
[1724229049850,4.023,2590.1,2589.7,0.7]
[1724229053191,2.4081886,2590.3,2590.0,0.7]
[1724229053432,8.7549886,2590.4,2590.0,0.7]
[1724229053739,4.023,2590.4,2590.0,0.7]
[1724229054092,4.023,2590.4,2590.3,0.7]